bitfinex/quotes_BTCUSD_20250206
["timestamp","ask_amount","ask_price","bid_price","bid_amount"]
[1738856962207,0.00030118,97113.0,97112.0,0.42670774]
[1738856962689,0.00030118,97113.0,97112.0,0.43670774]
[1738856963940,0.00030118,97113.0,97112.0,0.44870774]
[1738856964154,0.00030118,97113.0,97112.0,0.43970774]
[1738856964356,0.00030118,97113.0,97112.0,0.43670774]
[1738856964571,0.00030118,97113.0,97112.0,0.43770774]
[1738856964740,0.00430118,97113.0,97112.0,0.43770774]
[1738856964980,0.00430118,97113.0,97112.0,0.26770774]
[1738856965181,0.00030118,97113.0,97112.0,0.10250365]
[1738856965689,0.00330118,97113.0,97112.0,0.10250365]
[1738856965889,0.00330118,97113.0,97112.0,0.10353321]
[1738856966339,0.00330118,97113.0,97112.0,0.10250365]
[1738856966544,0.00330118,97113.0,97112.0,0.25353319]
[1738856966749,0.00030118,97113.0,97112.0,0.25250365]
[1738856967172,0.00830118,97113.0,97112.0,0.25350365]
[1738856967596,0.00830118,97113.0,97112.0,0.25250365]
[1738856967800,0.00022471,97135.0,97112.0,0.25250365]
[1738856967801,0.00022471,97135.0,97134.0,0.304425]
[1738856968007,0.00030118,97135.0,97134.0,0.40692865]
[1738856969932,0.00030118,97135.0,97134.0,0.41692865]
[1738856970294,0.00130118,97135.0,97134.0,0.41792865]
[1738856970494,0.00130118,97135.0,97134.0,0.40692865]
[1738856970834,0.00030118,97135.0,97134.0,0.40792865]
[1738856971033,0.00030118,97135.0,97134.0,0.40692865]
[1738856971206,0.00530118,97135.0,97134.0,0.40692865]
[1738856971384,0.00530118,97135.0,97134.0,0.40792865]
[1738856971586,0.00030118,97135.0,97134.0,0.41700415]
[1738856973101,0.00030118,97135.0,97134.0,0.41900415]
[1738856973305,0.00030118,97135.0,97134.0,0.10250365]
[1738856973532,0.00030118,97135.0,97100.0,0.19266433]
[1738856973729,0.00030118,97135.0,97134.0,0.001]
[1738856974140,0.00530118,97135.0,97134.0,0.001]
[1738856974515,0.00030118,97135.0,97134.0,0.00102942]
[1738856974724,0.00030118,97135.0,97134.0,0.10353307]
[1738856974931,0.00130118,97135.0,97134.0,0.25250365]
[1738856975944,0.00030118,97135.0,97134.0,0.25250365]
[1738856976399,0.00030118,97135.0,97134.0,0.25950365]
[1738856976728,0.00030118,97135.0,97134.0,0.25250365]
[1738856976956,0.00030118,97135.0,97134.0,0.26150365]
[1738856977976,0.00030118,97135.0,97134.0,0.26250365]
[1738856978194,0.00030118,97135.0,97134.0,0.16]
[1738856978515,0.00030118,97135.0,97134.0,0.26253301]
[1738856978721,0.00030118,97135.0,97134.0,0.26550365]
[1738856978956,0.00030118,97135.0,97134.0,0.013]
[1738856979133,0.08210118,97135.0,97134.0,0.013]
[1738856979561,0.1713427,97135.0,97134.0,0.013]
[1738856979768,0.29684635,97135.0,97134.0,0.004]
[1738856979978,0.29684635,97135.0,97080.0,0.19266433]
[1738856979979,0.023,97134.0,97080.0,0.19266433]
[1738856980190,0.154451,97119.0,97100.0,0.154478]
[1738856980402,0.023,97126.0,97093.0,0.10250365]
[1738856980605,0.19266433,97140.0,97092.0,0.00996337]
[1738856980606,0.023,97115.0,97092.0,0.0001068]
[1738856981045,0.177457,97114.0,97113.0,0.0001067]
[1738856981280,0.27996065,97114.0,97113.0,0.0001067]
[1738856981433,0.32526065,97114.0,97113.0,0.0001067]
[1738856981834,0.34604065,97114.0,97113.0,0.0001067]
[1738856982276,0.34604065,97114.0,97092.0,0.0001068]
[1738856982277,0.230691,97093.0,97092.0,0.0001068]
[1738856982608,0.0762,97093.0,97092.0,0.0001068]
[1738856982799,0.24940365,97093.0,97092.0,0.0001068]
[1738856983622,0.26957205,97093.0,97092.0,0.00018327]
[1738856983826,0.26957205,97093.0,97092.0,0.00918327]
[1738856984023,0.26957205,97093.0,97092.0,0.00018327]
[1738856984471,0.27967331,97093.0,97092.0,0.00018327]
[1738856985051,0.28167331,97093.0,97092.0,0.00018327]
[1738856985555,0.15616966,97093.0,97092.0,0.00018327]
[1738856985888,0.1269,97093.0,97092.0,0.00018327]
[1738856986004,0.1269,97093.0,97092.0,0.10371678]
[1738856986005,0.003,97093.0,97092.0,0.10371678]
[1738856986213,0.002,97093.0,97092.0,0.10268692]
[1738856986416,0.0754,97106.0,97093.0,0.154491]
[1738856986618,0.0754,97106.0,97093.0,0.10250365]
[1738856986832,0.0754,97106.0,97105.0,0.154471]
[1738856987035,0.0831,97117.0,97097.0,0.154484]
[1738856987238,0.0831,97117.0,97115.0,0.154455]
[1738856987451,0.0456,97125.0,97100.0,0.29684395]
[1738856987663,0.0831,97129.0,97106.0,0.15]
[1738856987870,0.0831,97129.0,97110.0,0.15]
[1738856988069,0.0831,97129.0,97124.0,0.154441]
[1738856988301,0.0831,97129.0,97125.0,0.154438]
[1738856988531,0.00022471,97135.0,97134.0,0.154425]
[1738856988728,0.00022471,97135.0,97125.0,0.25694265]
[1738856988938,0.00022471,97135.0,97125.0,0.10250365]
[1738856989180,0.00022471,97135.0,97129.0,0.154432]
[1738856989384,0.00022471,97135.0,97133.0,0.154425]
[1738856989775,0.00022471,97135.0,97126.0,0.15]
[1738856990045,0.00022471,97135.0,97133.0,0.154427]
[1738856990680,0.00022471,97135.0,97129.0,0.154432]
[1738856990840,0.00022471,97135.0,97133.0,0.001]
[1738856991042,0.16747218,97135.0,97133.0,0.001]
[1738856991295,0.00022471,97135.0,97133.0,0.001]
[1738856991977,0.00022471,97135.0,97126.0,0.006]
[1738856992219,0.00022471,97135.0,97129.0,0.154433]
[1738856992426,0.00022471,97135.0,97129.0,0.154432]
[1738856992601,0.00022471,97135.0,97133.0,0.002]
[1738856993042,0.00022471,97135.0,97117.0,0.10250365]
[1738856993240,0.00122471,97135.0,97132.0,0.154428]
[1738856993846,0.00022471,97135.0,97133.0,0.006]
[1738856994045,0.00022471,97135.0,97133.0,0.007]
[1738856994642,0.00022471,97135.0,97133.0,0.160425]
[1738856994859,0.00122471,97135.0,97133.0,0.160425]
[1738856995070,0.00122471,97135.0,97133.0,0.154425]
[1738856995272,0.00122471,97135.0,97132.0,0.205904]
[1738856995476,0.00122471,97135.0,97132.0,0.006]
[1738856995477,0.154426,97134.0,97132.0,0.006]
[1738856995901,0.00122471,97135.0,97108.0,0.00994721]
[1738856996100,0.00122471,97135.0,97113.0,0.205943]
[1738856996301,0.00122471,97135.0,97133.0,0.006]
[1738856996504,0.00122471,97135.0,97134.0,0.154425]
[1738856996505,0.01135472,97135.0,97134.0,0.154425]
[1738856996706,0.00022471,97135.0,97134.0,0.154425]
[1738856997193,0.00022471,97135.0,97133.0,0.001]
[1738856997396,0.00022471,97135.0,97134.0,0.154425]
[1738856997756,0.00022471,97135.0,97132.0,0.002]
[1738856997990,0.00122471,97135.0,97132.0,0.002]
[1738856998196,0.154427,97133.0,97132.0,0.002]
[1738856998603,0.27993065,97133.0,97132.0,0.002]
[1738856998807,0.27993065,97133.0,97093.0,0.205986]
[1738856998808,0.023,97132.0,97100.0,0.154479]
[1738856998989,0.31984395,97130.0,97093.0,7.647e-05]
[1738856999182,0.023,97124.0,97093.0,7.647e-05]
[1738856999346,0.205951,97111.0,97094.0,0.154488]
[1738856999553,0.154454,97116.0,97093.0,7.647e-05]
[1738856999754,0.08191895,97128.0,97094.0,0.10250365]
[1738856999962,0.154467,97109.0,97095.0,0.154487]
[1738857000164,0.205944,97114.0,97093.0,7.647e-05]
[1738857000392,0.0757,97113.0,97093.0,7.647e-05]
[1738857000599,0.0757,97113.0,97111.0,0.15446]
[1738857000874,0.0757,97127.0,97126.0,0.154438]
[1738857001201,0.0757,97142.0,97133.0,0.154427]
[1738857002119,0.02025636,97155.0,97134.0,0.25250365]
[1738857002324,0.08191895,97158.0,97134.0,0.25250365]
[1738857003494,0.00122471,97135.0,97134.0,0.25250365]
[1738857003669,0.00022471,97135.0,97134.0,0.25250365]
[1738857003828,0.00022471,97135.0,97134.0,0.26150365]
[1738857004032,0.00422471,97135.0,97134.0,0.26150365]
[1738857004462,0.00022471,97135.0,97134.0,0.26150365]
[1738857004862,0.00022471,97135.0,97134.0,0.26350365]
[1738857005522,0.00022471,97135.0,97134.0,0.26150365]
[1738857005677,0.00022471,97135.0,97134.0,0.25250365]
[1738857006077,0.00122471,97135.0,97134.0,0.001]
[1738857006290,0.00122471,97135.0,97096.0,0.0743857]
[1738857006291,0.00022471,97135.0,97118.0,0.21612604]
[1738857006541,0.00022471,97135.0,97122.0,0.15]
[1738857006730,0.00122471,97135.0,97127.0,0.154436]
[1738857006901,0.00022471,97135.0,97123.0,0.205922]
[1738857007273,0.00622471,97135.0,97118.0,7.647e-05]
[1738857007603,0.00022471,97135.0,97133.0,0.154426]
[1738857007837,0.00022471,97135.0,97119.0,0.10250365]
[1738857008075,0.00022471,97135.0,97127.0,0.002]
[1738857008428,0.00022471,97135.0,97134.0,0.15]
[1738857008429,0.00222471,97135.0,97134.0,0.15]
[1738857008631,0.00022471,97135.0,97134.0,0.25353287]
[1738857008864,0.00022471,97135.0,97134.0,0.25250365]
[1738857009066,0.00322471,97135.0,97134.0,0.25250365]
[1738857009596,0.00422471,97135.0,97134.0,0.26150365]
[1738857009798,0.00022471,97135.0,97134.0,0.25250365]
[1738857010004,0.00022471,97135.0,97133.0,0.002]
[1738857010329,0.00022471,97135.0,97134.0,0.002]
[1738857010543,0.00022471,97135.0,97134.0,0.005]
[1738857010945,0.12572836,97135.0,97134.0,0.005]
[1738857011276,0.10272836,97135.0,97134.0,0.002]
[1738857011474,0.12572836,97135.0,97134.0,0.002]
[1738857011700,0.023,97134.0,97133.0,0.002]
[1738857011882,0.27992865,97134.0,97133.0,0.002]
[1738857012085,0.10250365,97134.0,97093.0,0.00113645]
[1738857012289,0.154433,97130.0,97108.0,0.154466]
[1738857012442,0.25693165,97133.0,97112.0,0.15446]
[1738857012630,0.00022471,97135.0,97116.0,0.154453]
[1738857013074,0.00022471,97135.0,97116.0,0.205939]
[1738857013248,0.00622471,97135.0,97134.0,0.001]
[1738857013455,0.00022471,97135.0,97121.0,0.154446]
[1738857013655,0.00022471,97135.0,97118.0,0.10258012]
[1738857013913,0.00022471,97135.0,97124.0,0.15444]
[1738857014056,0.00022471,97135.0,97121.0,0.20695753]
[1738857014264,0.00022471,97135.0,97121.0,0.10353318]
[1738857014451,0.00022471,97135.0,97118.0,7.647e-05]
[1738857014646,0.01396718,97135.0,97118.0,7.647e-05]
[1738857014914,0.00322471,97135.0,97118.0,7.647e-05]
[1738857015123,0.00022471,97135.0,97118.0,7.647e-05]
[1738857015508,0.10250365,97134.0,97121.0,0.003]
[1738857015675,0.154442,97124.0,97118.0,7.647e-05]
[1738857015923,0.205915,97128.0,97118.0,7.647e-05]
[1738857016133,0.154434,97129.0,97118.0,0.00307647]
[1738857016341,0.01110678,97135.0,97118.0,7.647e-05]
[1738857016544,0.08191895,97133.0,97118.0,7.647e-05]
[1738857016778,0.00022408,97134.0,97121.0,0.003]
[1738857016979,0.154435,97128.0,97121.0,0.003]
[1738857017180,0.154444,97123.0,97121.0,0.003]
[1738857017543,0.205903,97133.0,97121.0,0.003]
[1738857017739,0.00022408,97134.0,97122.0,0.205926]
[1738857017938,0.00022408,97134.0,97126.0,0.154437]
[1738857018146,0.00022408,97134.0,97118.0,7.647e-05]
[1738857018351,0.00022408,97134.0,97121.0,0.001]
[1738857018556,0.154443,97123.0,97121.0,0.001]
[1738857018754,0.154443,97123.0,97118.0,7.647e-05]
[1738857019099,0.25694665,97123.0,97122.0,0.003]
[1738857019319,0.154449,97119.0,97118.0,7.647e-05]
[1738857019515,0.27995265,97119.0,97118.0,7.647e-05]
[1738857019719,0.154449,97119.0,97118.0,7.647e-05]
[1738857019874,0.25695265,97119.0,97118.0,7.647e-05]
[1738857020075,0.35801644,97119.0,97118.0,7.647e-05]
[1738857020479,0.40691644,97119.0,97118.0,7.647e-05]
[1738857020682,0.154489,97094.0,97093.0,0.0001067]
[1738857020885,0.232489,97094.0,97093.0,0.0001067]
[1738857021112,0.40739265,97094.0,97093.0,0.0001067]
[1738857021289,0.48932792,97094.0,97093.0,0.0001067]
[1738857022061,0.154526,97071.0,97056.0,0.154549]
[1738857022233,0.51497,97071.0,97058.0,0.15468523]
[1738857022591,0.51497,97071.0,97058.0,0.00013923]
[1738857022799,0.51497,97071.0,97059.0,0.154545]
[1738857022995,0.51497,97071.0,97058.0,0.00013923]
[1738857022996,0.154531,97068.0,97058.0,0.00013923]
[1738857023260,0.51497,97071.0,97058.0,0.00013923]
[1738857023462,0.51497,97071.0,97062.0,0.154539]
[1738857023707,0.51497,97071.0,97064.0,0.154536]
[1738857023911,0.51497,97071.0,97058.0,0.0011694]
[1738857024059,0.51497,97071.0,97058.0,0.00013923]
[1738857024265,0.154534,97066.0,97058.0,0.00013923]
[1738857024466,0.51497,97071.0,97058.0,0.00013923]
[1738857024794,0.51597,97071.0,97062.0,0.001]
[1738857024970,0.0816,97063.0,97062.0,0.001]
[1738857025183,0.0816,97063.0,97058.0,0.00013923]
[1738857025184,0.59657,97063.0,97058.0,0.00013923]
[1738857025383,0.59657,97063.0,97058.0,0.00813923]
[1738857025583,0.59657,97063.0,97058.0,0.00913923]
[1738857025823,0.59657,97063.0,97058.0,0.00113923]
[1738857026026,0.59657,97063.0,97062.0,0.008]
[1738857026228,0.59657,97063.0,97058.0,0.00113923]
[1738857026429,0.154544,97060.0,97058.0,0.00113923]
[1738857026732,0.59657,97063.0,97058.0,0.00013923]
[1738857026931,0.51497,97063.0,97061.0,0.154541]
[1738857027770,0.51597,97063.0,97061.0,0.154541]
[1738857027975,0.51597,97063.0,97062.0,0.25250365]
[1738857028379,0.51697,97063.0,97062.0,0.25250365]
[1738857029163,0.51497,97063.0,97062.0,0.25250365]
[1738857029375,0.51597,97063.0,97062.0,0.26150365]
[1738857030873,0.51597,97063.0,97062.0,0.26350365]
[1738857031082,0.38417781,97063.0,97062.0,0.33700365]
[1738857031238,0.00727641,97063.0,97062.0,0.69856984]
[1738857031458,0.08191895,97097.0,97096.0,0.154486]
[1738857031663,0.08191895,97097.0,97096.0,0.25698965]
[1738857031884,0.08191895,97097.0,97071.0,0.15]
[1738857032120,0.08191895,97109.0,97072.0,0.10250365]
[1738857032294,0.154479,97101.0,97086.0,0.15]
[1738857032504,0.08191895,97109.0,97096.0,0.009]
[1738857032955,0.0793,97115.0,97096.0,0.009]
[1738857033156,0.0793,97115.0,97110.0,0.154463]
[1738857033357,0.0793,97115.0,97097.0,0.10250365]
[1738857033560,0.0793,97115.0,97109.0,0.154464]
[1738857033918,0.0793,97115.0,97107.0,0.154467]
[1738857034122,0.0793,97115.0,97100.0,0.205971]
[1738857034304,0.0793,97115.0,97108.0,0.154466]
[1738857034509,0.0793,97115.0,97101.0,0.10250365]
[1738857034712,0.0793,97115.0,97102.0,0.154476]
[1738857034906,0.154479,97101.0,97086.0,0.154501]
[1738857035123,0.154479,97101.0,97060.0,0.29675797]
[1738857035124,0.0793,97115.0,97100.0,0.006]
[1738857035525,0.0793,97115.0,97088.0,0.15]
[1738857035742,0.001,97115.0,97113.0,0.154457]
[1738857036201,0.001,97115.0,97114.0,0.25353333]
[1738857036325,0.001,97115.0,97114.0,0.25250365]
[1738857037150,0.001,97115.0,97114.0,0.304457]
[1738857037650,0.08214303,97134.0,97116.0,0.154453]
[1738857037828,0.08214303,97134.0,97114.0,0.355942]
[1738857037829,0.08228221,97134.0,97114.0,0.355942]
[1738857038228,0.205905,97132.0,97115.0,0.154455]
[1738857038418,0.10250365,97131.0,97115.0,0.00360019]
[1738857038572,0.154454,97116.0,97115.0,0.00360019]
[1738857038773,0.0781,97115.0,97114.0,0.009]
[1738857038974,0.0781,97115.0,97083.0,0.01029304]
[1738857038975,0.15,97113.0,97050.0,0.19240475]
[1738857039197,0.0781,97085.0,97062.0,0.10250365]
[1738857039426,0.0781,97109.0,97063.0,0.00103004]
[1738857039623,0.154501,97087.0,97073.0,0.154522]
[1738857039757,0.154499,97088.0,97064.0,0.10250365]
[1738857039960,0.08191895,97099.0,97074.0,0.0032621]
[1738857040192,0.154486,97096.0,97084.0,0.154505]
[1738857040392,0.205979,97097.0,97065.0,0.00103004]
[1738857040564,0.205979,97097.0,97085.0,0.00325357]
[1738857040565,0.154502,97086.0,97085.0,0.00325357]
[1738857040766,0.0758,97095.0,97062.0,0.0001068]
[1738857040970,0.0455,97083.0,97062.0,0.00024603]
[1738857041382,0.154537,97064.0,97062.0,0.00024603]
[1738857041741,0.0758,97063.0,97062.0,0.00024603]
[1738857042404,0.079,97081.0,97062.0,0.00024603]
[1738857042664,0.154538,97064.0,97062.0,0.00352367]
[1738857042870,0.154538,97064.0,97062.0,0.00024603]
[1738857043075,0.023,97079.0,97062.0,0.00024603]
[1738857043306,0.15452,97075.0,97062.0,0.00024603]
[1738857043504,0.08882008,97081.0,97062.0,0.15478503]
[1738857043505,0.154521,97074.0,97062.0,0.15478503]
[1738857043708,0.206017,97079.0,97062.0,0.00224603]
[1738857043908,0.154511,97080.0,97063.0,0.00327686]
[1738857044061,0.08882008,97081.0,97063.0,0.00327686]
[1738857044266,0.001,97064.0,97063.0,0.00327686]
[1738857044466,0.079,97081.0,97063.0,0.26134867]
[1738857044714,0.079,97081.0,97079.0,0.154512]
[1738857044886,0.08191895,97087.0,97075.0,0.206026]
[1738857045068,0.001,97075.0,97074.0,0.154521]
[1738857045498,0.0796,97092.0,97087.0,0.154499]
[1738857045703,0.0796,97092.0,97071.0,0.154525]
[1738857045906,0.08191895,97089.0,97066.0,0.154534]
[1738857046077,0.2551749,97092.0,97083.0,0.154506]
[1738857046282,0.0796,97092.0,97071.0,0.356034]
[1738857046551,0.154485,97097.0,97087.0,0.154499]
[1738857046717,0.0493,97098.0,97089.0,0.154496]
[1738857046920,0.001,97081.0,97080.0,0.154511]
[1738857047130,0.001,97081.0,97080.0,0.4080446]
[1738857047299,0.08191895,97114.0,97081.0,0.15]
[1738857047495,0.08191895,97114.0,97101.0,0.154478]
[1738857047496,0.08191895,97102.0,97101.0,0.154478]
[1738857047809,0.08191895,97102.0,97087.0,0.154499]
[1738857047810,0.001,97092.0,97087.0,0.154499]
[1738857048017,0.205983,97095.0,97077.0,0.20602]
[1738857048218,0.0209097,97104.0,97064.0,0.15]
[1738857048458,0.006,97081.0,97080.0,0.155511]
[1738857048722,0.205964,97105.0,97080.0,0.154511]
[1738857048723,0.20599,97092.0,97080.0,0.154511]
[1738857048830,0.154486,97097.0,97088.0,0.154498]
[1738857049038,0.205973,97100.0,97087.0,0.006]
[1738857049296,0.08191895,97104.0,97087.0,0.006]
[1738857049495,0.154497,97089.0,97087.0,0.006]
[1738857049796,0.154497,97089.0,97080.0,0.00013923]
[1738857049797,0.154508,97082.0,97080.0,0.00013923]
[1738857050370,0.001,97095.0,97094.0,0.154489]
[1738857050569,0.08191895,97101.0,97099.0,0.15448]
[1738857050988,0.0786,97102.0,97100.0,0.15773519]
[1738857051168,0.0766,97112.0,97100.0,0.00325619]
[1738857051370,0.08191895,97102.0,97100.0,0.00325619]
[1738857051653,0.023,97109.0,97099.0,0.002]
[1738857051788,0.205969,97102.0,97099.0,0.004]
[1738857051989,0.154479,97100.0,97099.0,0.002]
[1738857052173,0.154467,97108.0,97099.0,0.002]
[1738857052373,0.08667119,97112.0,97100.0,0.005]
[1738857052701,0.154477,97102.0,97099.0,0.002]
[1738857052900,0.08667119,97112.0,97099.0,0.004]
[1738857053103,0.08667119,97112.0,97106.0,0.20596]
[1738857053305,0.08667119,97112.0,97110.0,0.154463]
[1738857053306,0.0766,97112.0,97110.0,0.154463]
[1738857053753,0.154447,97121.0,97112.0,0.15446]
[1738857053961,0.0797,97122.0,97111.0,0.00324575]
[1738857054135,0.0797,97132.0,97113.0,0.0032442]
[1738857054337,0.0797,97132.0,97129.0,0.154433]
[1738857054568,0.00643857,97133.0,97129.0,0.154433]
[1738857054569,0.00036346,97131.0,97129.0,0.154433]
[1738857054796,0.00036346,97131.0,97130.0,0.0032291]
[1738857056351,0.00136346,97131.0,97119.0,0.20593]
[1738857056561,0.15444,97126.0,97118.0,0.154451]
[1738857056762,0.154434,97129.0,97120.0,0.00323111]
[1738857056976,0.205923,97124.0,97119.0,0.00359098]
[1738857057300,0.01053008,97131.0,97130.0,0.007]
[1738857057712,0.00036346,97131.0,97116.0,0.205937]
[1738857057919,0.00036346,97131.0,97130.0,0.00322336]
[1738857058130,0.00036346,97131.0,97128.0,0.154434]
[1738857058326,0.00036346,97131.0,97130.0,0.00322336]
[1738857058458,0.00036346,97131.0,97129.0,0.15765762]
[1738857059067,0.00036346,97131.0,97130.0,0.007]
[1738857059301,0.00036346,97131.0,97130.0,0.01022386]
[1738857059899,0.00036346,97131.0,97130.0,0.2637569]
[1738857060104,0.00036346,97131.0,97130.0,0.26272751]
[1738857060306,0.00036346,97131.0,97130.0,0.25572751]
[1738857060683,2.5e-07,97135.0,97130.0,0.25772751]
[1738857060862,2.5e-07,97135.0,97134.0,0.41692865]
[1738857061086,0.00022471,97159.0,97134.0,0.41967624]
[1738857061290,0.00022471,97159.0,97154.0,0.304394]
[1738857061498,0.00022471,97159.0,97154.0,0.40689765]
[1738857061699,0.00022471,97159.0,97154.0,0.41043691]
[1738857061915,0.00022471,97159.0,97158.0,0.154387]
[1738857062131,0.00022471,97159.0,97158.0,0.25791974]
[1738857062343,0.00022471,97159.0,97158.0,0.41042646]
[1738857063034,0.00022471,97159.0,97158.0,0.15792281]
[1738857063491,0.15469191,97159.0,97158.0,0.00653581]
[1738857063720,0.00030591,97159.0,97158.0,0.00653581]
[1738857063929,0.00030591,97159.0,97158.0,0.003]
[1738857064136,0.00030591,97159.0,97157.0,0.154388]
[1738857064336,0.00030591,97159.0,97158.0,0.01553058]
[1738857064539,0.00030591,97159.0,97158.0,0.00653058]
[1738857064862,0.00030591,97159.0,97158.0,0.00953058]
[1738857065071,0.00030591,97159.0,97158.0,0.003]
[1738857065549,0.00030591,97159.0,97158.0,0.00353345]
[1738857065886,0.00030591,97159.0,97158.0,0.00653345]
[1738857066295,0.00030591,97159.0,97158.0,0.26006631]
[1738857066521,0.00030591,97159.0,97158.0,0.2590371]
[1738857066899,0.00030591,97159.0,97158.0,0.2610371]
[1738857067123,0.00030591,97159.0,97158.0,0.2620371]
[1738857067316,0.00030591,97159.0,97158.0,0.2570371]
[1738857067516,0.00030591,97159.0,97158.0,0.2600371]
[1738857067695,0.00030591,97159.0,97158.0,0.26994089]
[1738857067897,0.00030591,97159.0,97158.0,0.26694089]
[1738857068741,0.00030591,97159.0,97158.0,0.26594089]
[1738857069663,0.00330591,97159.0,97158.0,0.26594089]
[1738857070067,0.00030591,97159.0,97158.0,0.26594089]
[1738857070450,1.9e-07,97161.0,97159.0,0.15]
[1738857070650,1.9e-07,97161.0,97160.0,0.27653247]
[1738857070849,1.9e-07,97161.0,97160.0,0.27946931]
[1738857072487,2.7e-07,97172.0,97171.0,0.304367]
[1738857072693,2.7e-07,97172.0,97171.0,0.40687065]
[1738857072898,2.7e-07,97172.0,97171.0,0.41081231]
[1738857073714,0.00300027,97172.0,97171.0,0.10644531]
[1738857073890,0.00300027,97172.0,97171.0,0.00394166]
[1738857074096,0.00300027,97172.0,97170.0,0.154367]
[1738857074291,0.00300027,97172.0,97146.0,0.205875]
[1738857074292,0.00346413,97172.0,97171.0,0.00394241]
[1738857074519,0.00346413,97172.0,97168.0,0.15437]
[1738857074721,0.00346413,97172.0,97171.0,0.001]
[1738857074963,0.00046413,97172.0,97171.0,0.25453255]
[1738857075096,0.00046413,97172.0,97171.0,0.25673376]
[1738857075282,6.3e-07,97176.0,97171.0,0.25673376]
[1738857075500,6.3e-07,97176.0,97175.0,0.40686365]
[1738857075694,6.3e-07,97176.0,97175.0,0.41109018]
[1738857075893,6e-08,97193.0,97192.0,0.304333]
[1738857076120,1.4e-07,97193.0,97192.0,0.41104438]
[1738857077004,1.4e-07,97193.0,97192.0,0.43404438]
[1738857077349,0.00010684,97193.0,97192.0,0.43404438]
[1738857077784,0.07781631,97218.0,97193.0,0.173]
[1738857077986,0.07781631,97218.0,97216.0,0.154295]
[1738857078206,0.07781631,97218.0,97217.0,0.25250365]
[1738857078415,0.0783,97239.0,97227.0,0.154278]
[1738857078618,0.00036313,97229.0,97228.0,0.25353202]
[1738857078819,0.00036313,97229.0,97228.0,0.25665985]
[1738857079079,0.00036313,97229.0,97228.0,0.25832048]
[1738857079343,0.07738878,97238.0,97237.0,0.154262]
[1738857079479,0.154247,97247.0,97237.0,0.154261]
[1738857079684,0.0801,97252.0,97236.0,0.15]
[1738857079685,0.285751,97252.0,97236.0,0.15]
[1738857079906,0.285751,97252.0,97237.0,0.00483135]
[1738857080110,0.154246,97247.0,97237.0,0.154261]
[1738857080342,0.0801,97252.0,97239.0,0.205678]
[1738857080546,0.0801,97252.0,97251.0,0.15424]
[1738857080743,0.0801,97252.0,97243.0,0.154251]
[1738857080941,0.205653,97251.0,97238.0,0.154259]
[1738857081141,0.0801,97252.0,97211.0,0.15]
[1738857081340,0.0801,97252.0,97219.0,0.15013905]
[1738857081566,0.0801,97252.0,97250.0,0.15424]
[1738857082771,0.0811,97252.0,97250.0,0.15424]
[1738857082975,0.0811,97252.0,97247.0,0.154245]
[1738857083176,0.0801,97252.0,97203.0,0.0108]
[1738857083376,0.0801,97252.0,97248.0,0.0041085]
[1738857083579,0.08191895,97249.0,97219.0,0.00013905]
[1738857083813,0.10250365,97248.0,97220.0,0.205718]
[1738857084014,0.0801,97252.0,97222.0,0.15]
[1738857084219,0.0801,97252.0,97251.0,0.15424]
[1738857084597,0.0801,97252.0,97251.0,0.15903508]
[1738857085039,0.0001067,97257.0,97256.0,0.154232]
[1738857085454,0.0001067,97257.0,97256.0,0.15997837]
[1738857085656,0.0001067,97257.0,97256.0,0.41351018]
[1738857085828,0.0001067,97257.0,97256.0,0.41248202]
[1738857086263,0.0001067,97257.0,97256.0,0.42548202]
[1738857086464,0.0001067,97257.0,97256.0,0.43532805]
[1738857087092,0.0001067,97257.0,97256.0,0.42548202]
[1738857087507,0.0001067,97257.0,97256.0,0.41648202]
[1738857087714,0.0001067,97257.0,97256.0,0.41248202]
[1738857087910,0.0021067,97257.0,97256.0,0.41348202]
[1738857088085,0.0051067,97257.0,97256.0,0.41248202]
[1738857088469,0.0021067,97257.0,97256.0,0.41348202]
[1738857088902,0.0021067,97257.0,97256.0,0.00674637]
[1738857088903,0.0061067,97257.0,97256.0,0.00674637]
[1738857089273,0.0540067,97257.0,97256.0,0.001]
[1738857089493,0.0500067,97257.0,97256.0,0.001]
[1738857089896,0.1300067,97257.0,97256.0,0.001]
[1738857090689,0.1300067,97257.0,97256.0,0.0067328]
[1738857090890,0.1340067,97257.0,97256.0,0.001]
[1738857091292,0.1280067,97257.0,97231.0,0.15]
[1738857091516,0.1280067,97257.0,97236.0,0.205684]
[1738857091675,0.1370067,97257.0,97256.0,0.003]
[1738857091918,0.1280067,97257.0,97256.0,0.156232]
[1738857092126,0.1280067,97257.0,97256.0,0.16801727]
[1738857092401,0.1290067,97257.0,97256.0,0.16801727]
[1738857092597,0.0831067,97257.0,97256.0,0.01378527]
[1738857092740,0.0831067,97257.0,97256.0,0.16801727]
[1738857092951,0.0021067,97257.0,97256.0,0.15901727]
[1738857093159,0.0021067,97257.0,97256.0,0.26152092]
[1738857093358,0.0031067,97257.0,97256.0,0.27052092]
[1738857093605,0.0031067,97257.0,97256.0,0.42052092]
[1738857093799,0.0011067,97257.0,97256.0,0.42052092]
[1738857094210,0.0011067,97257.0,97256.0,0.42689858]
[1738857094628,0.0001067,97257.0,97256.0,0.41789858]
[1738857094826,0.0001067,97257.0,97256.0,0.42289858]
[1738857095031,0.0011067,97257.0,97256.0,0.42289858]
[1738857095244,0.0011067,97257.0,97256.0,0.41389858]
[1738857095458,0.0151067,97257.0,97256.0,0.41489858]
[1738857098465,0.0151067,97257.0,97256.0,0.26489858]
[1738857098639,0.2960367,97257.0,97256.0,0.00816293]
[1738857098862,0.1418067,97257.0,97256.0,0.16239493]
[1738857099088,0.0151067,97257.0,97256.0,0.25773565]
[1738857099290,0.0151067,97257.0,97256.0,0.2677158]
[1738857099506,0.0151067,97257.0,97256.0,0.42344208]
[1738857099698,0.0151067,97257.0,97256.0,0.42487743]
[1738857100264,7e-07,97257.0,97256.0,0.42487743]
[1738857100464,0.1308,97295.0,97282.0,0.15419]
[1738857100613,0.01498093,97283.0,97282.0,0.25669365]
[1738857100812,0.01498093,97283.0,97282.0,0.26380036]
[1738857101585,0.01498093,97283.0,97282.0,0.26480036]
[1738857101788,0.02398093,97283.0,97282.0,0.26580036]
[1738857101985,0.01498093,97283.0,97282.0,0.16129671]
[1738857102271,0.01498093,97283.0,97282.0,0.00710671]
[1738857102427,0.01498093,97283.0,97268.0,0.20476171]
[1738857102613,0.01498093,97283.0,97282.0,0.16247284]